{"text_format":"1","workbook":"xlsx","n_sheets":2,"sheets":["ВОР","Лист2"],"not_rendered":{"charts":0,"images":0,"macros":1,"external_links":0,"defined_names":1,"comments":0,"pivot_tables":0},"unopened":[],"bounds":{"document_bytes":16777216,"sheet_cells":100000,"rows_first":2000,"rows_last":500,"rows_between":2000,"halvings":0,"cell_chars":16384,"cell_head_chars":4096},"cells_cut":0,"cells_raw":0,"read":"whole","date_system":"1900"}

{"sheet":"ВОР","index":0,"n_rows":151,"n_cols":6,"rows_kept":151,"cut":false,"hidden":false,"merged":[[8,0,8,5],[15,0,17,0],[15,1,17,1],[15,2,17,2],[15,3,17,3],[15,4,17,4],[15,5,17,5]]}
[null,null,null,null,null,"«УТВЕРЖДАЮ»"]
[null,null,null,null,null,"Директор ДЭиБПД"]
[null,null,null,null,null,"АО «Коломенский Завод»"]
[null,null,null,null,null,"______________   Степанкевич В.С."]
[]
[]
[null,null,null,null,null,"от «___»   ________  2025_ г."]
[]
["Ведомость объемов работ \nОбъект: \"Реконструкция Цеха М14. Устройство фундаментов под оборудование и плиты пола (в осях Г-Нх1-19)\" на территории АО \"Коломенский завод\",\nрасположенного по адресу: Московская область, г. Коломна, ул. Партизан 42"]
[]
["№","Вид работ","Ед. измер","Объем","Формула расчета","Примечание"]
[null,"Система электроснабжения. Шинопроводы"]
[null,"Демонтажные работы:"]
[1,"Демонтаж существующих шинопроводов ","м",338.5]
[null,"Монтаж шинопровода:"]
[2,"Монтаж шинопровлда ШП1_1600A_AL_IP55_4W_(3P+N+PE(КОРПУС))","м",{"$f":"312+54+1.39+0.94+1+1+1.04+5.5+1.9+2.84+5.85+5.2+1.71+1.29+1.85+1.78+1.36","v":400.65},null," -  KXA 17504-B-STD-1600 A-КРЕПЕЖНЫЙ-СТАНДАРТНОГО РАЗМЕРА-4W - 90 м;\n - KXA 17504-P-STD-1600 A-ВСТАВНОЙ-СТАНДАРТНОГО РАЗМЕРА-4W - 330 м \n - 34 KXA 17504-B-X-1600 A-КРЕПЕЖНЫЙ-НЕСТАНДАРТНОГО РАЗМЕРА-4W (x=720мм)- 1 шт;\n - KXA 17504-B-B11-1600 A-КРЕПЕЖНЫЙ-БЛОК ПИТАНИЯ-4W - 2 шт; \n - KXA 17504-B-BO-1600 A-КРЕПЕЖНЫЙ-БЛОК ПИТАНИЯ С СЕРЕДИНЫ-4W - 1;\n - KXA 17504-B-D-1600 A-КРЕПЕЖНЫЙ-УГЛОВАЯ ВНИЗ-4W - 4 шт;\n - KXA 17504-B-L-1600 A-КРЕПЕЖНЫЙ-УГЛОВАЯ ВЛЕВО-4W - 7 шт;\n - KXA 17504-B-L-1600 A-КРЕПЕЖНЫЙ-УГЛОВАЯ ВЛЕВО-4W (с=477мм) - 1шт;\n - KXA 17504-B-LH-1600 A-КРЕПЕЖНЫЙ-Z-ОБРАЗНАЯ ГОРИЗОНТАЛЬНАЯ ВЛЕВО-4W (offset=350мм) - 1 шт;\n - KXA 17504-B-R-1600 A-КРЕПЕЖНЫЙ-УГЛОВАЯ ВПРАВО-4W - 8 шт;\n - KXA 17504-B-R-1600 A-КРЕПЕЖНЫЙ-УГЛОВАЯ ВПРАВО-4W (c=607мм) - 1шт;\n - KXA 17504-B-TYL-1600 A-КРЕПЕЖНЫЙ-Т-ОБРАЗНАЯ ЛЕВАЯ-4W - 2 шт;\n - KXA 17504-B-TYL-1600 A-КРЕПЕЖНЫЙ-Т-ОБРАЗНАЯ ЛЕВАЯ-4W (с=670мм) - 1шт;\n - KXA 17504-B-TYL-1600 A-КРЕПЕЖНЫЙ-Т-ОБРАЗНАЯ ЛЕВАЯ-4W (с=700мм) - 1 шт;\n - KXA 17504-B-U-1600 A-КРЕПЕЖНЫЙ-УГЛОВАЯ ВВЕРХ-4W - 6 шт;\n - KXA 17504-B-X-1600 A-КРЕПЕЖНЫЙ-НЕСТАНДАРТНОГО РАЗМЕРА-4W (x=1000мм) - 1шт;\n - KXA 17504-B-X-1600 A-КРЕПЕЖНЫЙ-НЕСТАНДАРТНОГО РАЗМЕРА-4W (x=1050мм) -1 шт;\n - KXA 17504-B-X-1600 A-КРЕПЕЖНЫЙ-НЕСТАНДАРТНОГО РАЗМЕРА-4W (x=1060мм) - 1 шт;\n - KXA 17504-B-X-1600 A-КРЕПЕЖНЫЙ-НЕСТАНДАРТНОГО РАЗМЕРА-4W (x=1190мм) - 1 шт;\n - KXA 17504-B-X-1600 A-КРЕПЕЖНЫЙ-НЕСТАНДАРТНОГО РАЗМЕРА-4W (x=1450мм) - 1 шт;\n - KXA 17504-B-X-1600 A-КРЕПЕЖНЫЙ-НЕСТАНДАРТНОГО РАЗМЕРА-4W (x=1490мм) - 1 шт;\n - KXA 17504-B-X-1600 A-КРЕПЕЖНЫЙ-НЕСТАНДАРТНОГО РАЗМЕРА-4W (x=1500мм) - 2 шт;\n - KXA 17504-B-X-1600 A-КРЕПЕЖНЫЙ-НЕСТАНДАРТНОГО РАЗМЕРА-4W (x=1600мм) - 2 шт;\n - KXA 17504-B-X-1600 A-КРЕПЕЖНЫЙ-НЕСТАНДАРТНОГО РАЗМЕРА-4W (x=1670мм) - 1 шт;\n - KXA 17504-B-X-1600 A-КРЕПЕЖНЫЙ-НЕСТАНДАРТНОГО РАЗМЕРА-4W (x=1700мм) - 1 шт;\n - KXA 17504-B-X-1600 A-КРЕПЕЖНЫЙ-НЕСТАНДАРТНОГО РАЗМЕРА-4W (x=1950мм) - 1 шт;\n - KXA 17504-B-X-1600 A-КРЕПЕЖНЫЙ-НЕСТАНДАРТНОГО РАЗМЕРА-4W (x=1990мм) - 1 шт;\n - KXA 17504-B-X-1600 A-КРЕПЕЖНЫЙ-НЕСТАНДАРТНОГО РАЗМЕРА-4W (x=2200мм) - 1 шт;\n - KXA 17504-B-X-1600 A-КРЕПЕЖНЫЙ-НЕСТАНДАРТНОГО РАЗМЕРА-4W (x=2240мм) - 1 шт;\n - KXA 17504-B-X-1600 A-КРЕПЕЖНЫЙ-НЕСТАНДАРТНОГО РАЗМЕРА-4W (x=470мм) - 1 шт;\n - KXA 17504-B-X-1600 A-КРЕПЕЖНЫЙ-НЕСТАНДАРТНОГО РАЗМЕРА-4W (x=540мм) - 1 шт;\n - KXA 17504-B-X-1600 A-КРЕПЕЖНЫЙ-НЕСТАНДАРТНОГО РАЗМЕРА-4W (x=660мм) - 1 шт;\n - KXA 17504-B-X-1600 A-КРЕПЕЖНЫЙ-НЕСТАНДАРТНОГО РАЗМЕРА-4W (x=700мм) - 3 шт;\n - KXA 17504-B-X-1600 A-КРЕПЕЖНЫЙ-НЕСТАНДАРТНОГО РАЗМЕРА-4W (x=780мм) - 1 шт;\n - KXA 17504-B-X-1600 A-КРЕПЕЖНЫЙ-НЕСТАНДАРТНОГО РАЗМЕРА-4W (x=870мм) - 2 шт;\n - KXA 17504-B-YDT-1600 A-КРЕПЕЖНЫЙ-КОМПЕНСАЦИОННАЯ ГОРИЗОНТАЛЬНАЯ-4W - 2 шт;\n - KX-S-КОНЦЕВАЯ-4W-4.5W-5W (6x160)-A:211 - 4 шт\n "]
[]
[]
[3,"Монтаж выключателя автоматического","шт",{"$f":"1+27+2","v":30},null," - Выключатель автоматический KEAZ OptiMat-1600-S2-3P-85-F-MR7.0-B-C2200-M2-P00-S1-03 KEAZ -1 шт;\n - Авт. выкл. NM8N-800S TM 3P 630А 50кА с рег. термомаг. расцепителем (R) NM8N-800S TM CHINT - 27 шт;\n - Выключатель автоматический Протон М-25В-МР4 LSI-ВА50-45Про-1600А-85кА-3П-ГП 7005209 - 2 шт"]
[4,"Монтаж ответвительной коробки","шт",27,null," - Коробка ответвительная КХР 6351-630 А-вставной-пусто-ЗР"]
[null,"Монтаж узлов крепления шинопровода:"]
[5,"Монтаж настенного крепление шинопровода","шт",132,null," - Комплект крепления несущего настенного - 132 шт в составе:\n • Консоль A-STS-D 810 3109013 (4,933 кг/шт) - 1 шт;\n • KX Соединительньй набор для кронштейна (1кг/копл) - 2 шт;\n • Стальной дюбель ЕАЕ M10 5000023 (0,07 кг/шт) - 2 шт;"]
[6,"Монтаж потолочного крепления шинопровода","шт",{"$f":"172+8","v":180},null," - Комплект крепления потолочного №1 - 172 шт в составе:\n • Деталь крепления TP 2 3006350 (вес 0,134 кг/шт) - 2 шт;\n • Болт M10 1000566 - 6 шт;\n • Гайка M10 1000522 - 6 шт;\n • Шайба M10 1000504 - 10 шт;\n • M10 Скользящая гайка 1001312 (вес 0,039 кг/шт) - 2 шт;\n • Потолочная монтажная стойка UDD 1600 3008010 (вес 10,55 кг/шт)- 2 шт;\n • Соединитель для U-профиля U-65 3006642  - 1 шт;\n • Консоль A-STS-D 810 3109013 - 1 шт;\n • KX Соединительньй набор для кронштейна - 2 шт;\n • Защитный колпачок UDD 1002279 - 1 шт\n - Комплект крепления потолочного №2 - 8 шт в составе:\n • Распорный дюбель ЕАЕ (M12) 5000022 (вес 0,12 кг/шт)  - 4 шт;\n • Потолочная монтажная стойка UPD 1200 3004523 (2,8 кг/шт) - 2 шт;\n• Болт M10 1000566 - 4 шт;\n • Гайка M10 1000522 - 4 шт;\n • Шайба M10 1000504 - 8 шт;\n • Консоль UDYB 550 3007991 (4,048 кг/шт) - 1 шт;\n • KX Соединительньй набор для кронштейна (1кг/копл) - 2 шт;"]
[7,"Монтаж узлов крепления для блоков питания","шт",{"$f":"2","v":2},null," - Комплект крепления блока питания - 2 шт в составе:  \n • Деталь крепления TP 2 3006350 - 2 шт;\n • Болт M10 1000566 - 6 шт;\n • Гайка M10 1000522 - 6 шт;\n • Шайба M10 1000504 - 10 шт;\n • M10 Скользящая гайка 1001312 - 2 шт;\n • Потолочная монтажная стойка UDD 1600 3008010 - 2 шт;\n • Соединитель для U-профиля U-65 3006642  - 1 шт;\n • Консоль A-STS-D 810 3109013 - 1 шт;\n • KX Соединительньй набор для кронштейна - 2 шт;\n • Защитный колпачок UDD 1002279 - 1 шт"]
[8,"Монтаж узлов крепления для концевых коробок","шт",4,null," - Комплект крепления концевых коробок - 4 шт в составе:  \n • Распорный дюбель ЕАЕ (M12) 5000022 (вес 0,12 кг/шт)  - 4 шт;\n • Потолочная монтажная стойка UPD 1200 3004523 (2,8 кг/шт) - 2 шт;\n• Болт M10 1000566 - 4 шт;\n • Гайка M10 1000522 - 4 шт;\n • Шайба M10 1000504 - 8 шт;\n • Консоль UDYB 1000 3007996 (7,031 кг/шт) - 1 шт"]
[null,"Монтаж кабельных линий:"]
[9,"Монтаж кабеля силового ","м",{"$f":"80+80","v":160},null," - Кабель силовой с медными жилами ВВГнг(А)-LS 1х185 мм2 - 160 м (без учета затрат на трудноустранимые потери)"]
[10,"Монтаж кабельной муфты","шт",{"$f":"32+32","v":64},null," - Кабельная муфта 1ПКТ-1-150/240(Б)нг-LS - 64 шт"]
[null,"Пусконаладочные работы:"]
[11,"Пусконаладочные работы произвести согласно разработанной программе ПНР"]
[null,"Внутреннее электрооборудование"]
[null,"Монтаж щитов ШРНН-1.x; ШРНН-2.x:"]
[12,"Монтаж напольного шкафа 800х1600х400","шт",27,null,"  - Шкаф напольный Schneider Electric Spacial, 800x1600x400мм, IP55, сталь, NSYSM16840P Schneider Electric - 27 шт;\n - Провод ПВ-3 185 - 270 м (без учета затрат на трудноустранимые потери);"]
[13,"Установка в шкафу автоматических выключателей ","шт",135,null," - Автоматический выключатель NM8N-250C EN 3P 160А 36кА с электр. расцепителем (R) NM8N-250C EN CHINT - 135 шт"]
[14,"Установка в шкафу медных шин","шт",14,null," - Шина медная (4 м) М1Т 5х50 IEK - 14 шт;\n - Изолятор силовой SM51 (М8) IEK - 108 шт "]
[15,"Монтаж кабеля силового с медными жилами, сечением 5х185 мм2 в металлический кабель канал","м",216,null," - Кабель силовой с медными жилами и ПВХ-изоляцией и оболочкой нераспространяющей горения, и низким газо-дымовыделением сечением ВВГнг(А)-LS - 5х185 мм2 - 216 м (без учета затрат на трудноустранимые потери);"]
[16,"Монтаж кабельной муфты ","шт",108,null," - Кабельная муфта 5ПКТп-1-150/240 нг-LS - 108 шт"]
[null,"Монтаж щита управления выключателя автоматического KEAZ OptiMat:"]
[17,"Монтаж щита распределительного ЩРН-12 (265х310х120)","шт",1,null," - Щит распределительный ЩРН-12 (265х310х120) IP54 PROXIMA mb24-12 EKF - 1 шт"]
[18,"Монтаж кнопки управления","шт",2,null," - Кнопка управления модульная OptiDin KM63-A-11-УХЛ3 KEAZ - 2 шт"]
[19,"Монтаж сигнальной лампы ","шт",1,null," - Лампа сигнальная OptiDin SL63-R-24AC/DC-УХЛ3 KEAZ - 1 шт"]
[20,"Прокладка трубы гофрированной","м",8,null," - Труба гофр. ПВХ Plast с зондом d32мм - 8 м (без учета затрат на трудноустранимые потери);\n - Крепеж-клипса d 25 мм - 4 шт"]
[21,"Пркладка кабеля с креплением по всей длине","м",1,null," - Кабель с медными токопроводящими жилами, изолированными полимером из поливинилхлоридного пластиката не содержащим галогенов и не выделяющим вредные для здоровья вещества при горении и тлении.\nППГнг(A)-HF 2х2.5 - 2 м (без учета затрат на трудноустранимые потери);"]
[22,"Затягивание кабеля в проложенные трубы гофрированные в две нити","м ",32,null,"Монтажный кабель, с медной луженой жилой, изоляцией и оболочкой из ПВХ пониженной пожарной опасности. МКШВнг (А) LS 1х2х1,0 - 32 м (без учета затрат на трудноустранимые потери)"]
[null,"Монтаж лотковой кабельной системы:"]
[23,"Монтаж лотка неперфорированного замкового оцинкованного","м",{"$f":"3*27","v":81},null," - Лоток неперфорированный замковый оцинкованный ЛМЗ-200х100-1,0-3000 - 27 шт/81 м;\n - Крышка лотка замковая 200х1,0х3000 горячеоцинкованная КЛЗгц-200х15-1,0-3000 - 27 шт/81 м;\n - Угол горизонтальный замковый 90 град, ЛМЗУ-200х100-0,7-90-R-600 оцинкованный - 27 шт;\n - Крышка к углу плоскому замковому 90 градусов к кабельному лотку 200-0,7 КЛЗУ 200-0,7-90-ОЦ - 27 шт\n - Угол внутренний (подъем) замковый 45 град, ЛМЗП-200х100-0,7-45 оцинкованный - 27 шт;\n - Крышка к углу внутреннему (подъему) замковому к кабельному лотку 200-0,7 КЛЗП 200-0,7-90-ОЦ - 27 шт;\n - Узел крепления лотка - 54 шт в составе:\n • Страт профиль с 3-х сторонней перфорацией MSTPR 41х41х2,0 500 оцинк. CLIVE                                                     \nMSTPR41304105020ZS - 1 шт;\n • Страт профиль с 3-х сторонней перфорацией MSTPR 41х41х2,0 700 оцинк. CLIVE MSTPR41304107020ZS - 1 шт;\n • Заглушка страт профиля MSTZT 41х41 MSTZT10004141000 - 4 шт;\n • Пластина опорная для страт профиля MSTJF оцинк. CLIVE MSTJF11000000002ZS - 4 шт;\n • Гайка со стопорным кольцом FORNT М10 DIN985 (100шт) оцинк. FORNT10210100000ZS - 8 шт;\n • Шпилька FORSN М10х1000 DIN975 оцинк. FORSN10110100000ZS - 1 шт;\n • Шайба увеличенная FORWH М10 DIN9021 (100шт) оцинк.\nFORWH10210100000ZS - 4 шт;\n • Прижим лотка NL-PR-S ALSJF ALSJF10100000001 - 2 шт"]
[null,"Система электроснабжения и автоматизации противодымной вентиляции"]
[null,"Автоматизация системы противодымной вентиляции (приточная):"]
[null,"Монтаж оборудования:"]
[24,"Монтаж шкафа управления системой вентиляции","шт",{"$f":"3","v":3},null," - Шкаф управления системами противодымной  вентиляции ШКВАЛ 210-02200Р*1- 6К*1 - 3 шт;"]
[25,"Монтаж терминальной платы TRB-110","шт",6,null," - Терминальная плата TRB-110 - 6шт."]
[null,"Автоматизация системы противодымной вентиляции (вытяжная):"]
[null,"Монтаж оборудования:"]
[26,"Монтаж шкафа управления пожарными люками","шт",{"$f":"3","v":3},null," - Шкаф управления пожарный люками дымовыми ШКВАЛ-ЛК-02- (ЦШ+ЦШ)-Х - 3 шт"]
[27,"Монтаж распределительной коробки","шт",12,null," - Коробка распределительная огнестойкая КРОПС, IP41, габаритные размеры 80х80х35 мм, для кабелей сечением до 2,5 мм2, 6 клемм - 12 шт"]
[null,"Монтаж кабельных линий:"]
[28,"Монтаж ответтвительной коробки с установкой в нее автоматического выключателя","шт",6,null," - KXP 1651-160 A-ВСТАВНОЙ-ОТВЕТВИТЕЛЬНАЯ КОРОБКА-ПУСТО-3P-ПОДХОДИТ ДЛЯ АВТ (3016532) - 6шт.\n- Автоматический выключатель 63А, трехполюсный NXM-63H/3P 63А 50кА ® - 6шт."]
[29,"Монтаж ответтвительной коробки с установкой в нее автоматического выключателя","шт",1,null," - Ответвительная коробка KXP 1651-160 А - вставкой с компактным выключателем-3Р  - 1 шт\n- Автоматический выключатель 16А, однополюсный NM8N-125C TM 1P 16А 36кА (R)"]
[30,"Прокладка гофрированной ПВХ трубы для защиты кабеля","м",{"$f":"676+475+250","v":1401},null," - Трубы из самозатухающего ПВХ гибкие гофрированные, тяжелые, с протяжкой, номинальный внутренний диаметр 16 мм - 676 м (без учета затрат на  трудноустранимые потери);\n- Скоба металлическая однолапковая 16мм - 1146шт;\n- Трубы из самозатухающего ПВХ гибкие гофрированные, тяжелые, с протяжкой, номинальный внутренний диаметр 25 мм - 475 м (без учета затрат на  трудноустранимые потери);\n - Скоба металлическая однолапковая 25мм - 435шт;\n - Трубы из самозатухающего ПВХ гибкие гофрированные, тяжелые, с протяжкой, номинальный внутренний диаметр 40 мм - 250 м (без учета затрат на  трудноустранимые потери);\n - Скоба металлическая однолапковая 40мм - 750шт;\n- Дюбель распорный универсальный полипропиленовый - 2331шт;\n- Саморез - 2331шт; \n- Стальные стяжки FORTISFLEX СКС 304 7.9х1000 (упаковка 100шт.) -7шт."]
[31,"Затягивание кабеля в проложенную гофротрубу","м",{"$f":"D59","v":1401},null," - Кабель силовой не распространяющий горения, не содержащий галогенов\nППГнг-А-FRHF 5х16 - 250 м (без учета затрат на  трудноустранимые потери);\n - Кабель силовой не распространяющий горения, не содержащий галогенов\nППГнг-А-FRHF 2х16 - 300 м (без учета затрат на  трудноустранимые потери);\n - Кабель силовой не распространяющий горения, не содержащий галогенов\nППГнг-А-FRHF 4х10 - 30 м (без учета затрат на  трудноустранимые потери);\n- Кабель силовой не распространяющий горения, не содержащий галогенов\nППГнг-А-FRHF 3х2,5 - 145 м (без учета затрат на  трудноустранимые потери);\n- Кабель силовой не распространяющий горения, не содержащий галогенов\nППГнг-А-FRHF 3х1,5 - 60 м (без учета затрат на  трудноустранимые потери);\n - Кабель для систем ОПС и СОУЭ огнестойкий, не поддерживающий горения, неэкранированный   КПСнг(А)-FRLS 1х2х1,0 - 546 м (без учета затрат на  трудноустранимые потери);\n - Кабель для систем ОПС и СОУЭ огнестойкий, не поддерживающий горения, неэкранированный   КПСЭнг(А)-FRLS 2х2х1,0 - 130 м (без учета затрат на  трудноустранимые потери);  "]
[32,"Монтаж гильз из стальной тубы для прохода кабеля ","м",5,null," - Труба стальная водогазопроводная 50х3,5 - 5 м"]
[33,"Герметизация проходов","шт ",10,null," - Пена противопожарная, марка \"PROMAFOAM-C\" (700 мл) - 1 шт"]
[34,"Монтаж устройства дистанционного пуска «УДП 513-3АМ исп.02» ","шт",6,null,"-Устройство дистанционного пуска «УДП 513-3АМ исп.02» - 6 шт."]
[35,"Монтаж блока сигнально-пускового С2000 КПБ ","шт","1",null,"- Блок сигнально-пусковой С2000 КПБ – 1 шт."]
[36,"Монтаж устройства коммутационного УК-ВК/02","шт","4",null,"- Устройство коммутационное УК-ВК/02"]
[37,"Монтаж  модуля  подключения нагрузки ","шт","4",null,"- Модуль подключения нагрузки - 4шт"]
[null," Противодымная вентиляция."]
[null,"Противодымная вентиляция (приточная):"]
[38,"Монтаж стенового клапана \"Гермик-ДУ-3-1700х1700 в проектируемый проем в кирпичной стене","шт.",2,null,"Стеновой клапан \"Гермик-ДУ-3-1700х1700-1ф-МV220-СВ\" живое сечение 2,075 м2"]
[39,"Монтаж стенового клапана \"Гермик-ДУ-3-1700х1700   частично в проектируемый проем в стене, частично вместо витражного остекления","шт.",2,null,"Стеновой клапан \"Гермик-ДУ-3-1700х1700-1ф-МV220-СВ\" живое сечение 2,075 м2"]
[40,"Установка вентиляторов  \"Веза ВРАН 9 ДУВ 125 Л270 У1 N=30кВт\" снаружи здания на ж/б основание","шт.",4,null,"в комлекте с решеткой"]
[41,"Прокладка воздуховодов из листовой оцинкованной стали","м2",16.04,null,"Переход 1700х1700/900х1600 - 4 шт (16,04 м2)"]
[null,"Противодымная вентиляция (вытяжная):"]
[42,"Монтаж клапана \"Веза\" Дымозор-100-1500х1500-У-3000-230-Р-С,  с утепленной крышкой и защитой от промерзания в покрытие кровли","шт.",18,null,"Клапан \"Веза\" Дымозор-100-1500х1500-У-3000-230-Р-С - 18шт"]
[null,"Система пожарной сигнализации. Система оповещения и управления эвакуацией людей при пожаре"]
[null,"Монтаж оборудования по пожарной сигнализации:"]
[43,"Установка пожарного шкафа сигнализации ШПС-12 исп.12 на стене h=1,5м","шт",1,null,"Шкаф пожарной сигнализации \"ШПС-12\" исп.12 ЗАО НВП \"Болид\""]
[44,"Установка аккумулятора 12В, 17 Ач (АБ1217С) в ШПС-12 исп.12","шт",2,null,"Аккумулятор 12В, 17 Ач (АБ1217С) срок службы 12 лет АБ1217С ЗАО НВП \"Болид\""]
[45,"Установка ППКУП «Сириус» на стене h=1,5м","шт",1,null,"Прибор приемно-контрольный и управления пожарный \"Сириус\" ЗАО НВП \"Болид\""]
[46,"Установка аккумулятора 12В, 17 Ач (АБ1217С) в Сириус","шт",2,null,"Аккумулятор 12В, 17 Ач (АБ1217С) срок службы 12 лет АБ1217С ЗАО НВП \"Болид\""]
[47,"Монтаж извещателя пожарного ручного электронного ИПР 513-3АМ исп.1 на стене h=1,5м","шт",13,null,"Извещатель пожарный ручной электронный ИПР 513-3АМ исп.1 ЗАО НВП \"Болид\""]
[48,"Монтаж извещателя пожарного дымового оптико-электронного аналогово-адресного со встроенным изолятором короткого замыкания ДИП-34А-04 на высоте свыше 2 до 5м","шт",41,null,"Извещатель пожарный дымовой оптико-электронный аналогово-адресный со встроенным изолятором короткого замыкания ДИП-34А-04 ЗАО НВП \"Болид\""]
[49,"Монтаж извещателя пожарного дымового оптико-электронного линейного С2000-ИПДЛ исп. 120 на высоте от 5 до 15м","шт",16,null,"Извещатель пожарный дымовой оптико-электронный линейный С2000-ИПДЛ исп. 120 ЗАО НВП \"Болид\""]
[50,"Монтаж блока контрольно-пускового С2000-КПБ в ШПС-12 исп.12","шт",1,null,"Блок контрольно-пусковой С2000-КПБ ЗАО НВП \"Болид\""]
[51,"Монтаж блока разветвительно-изолирующего БРИЗ на высоте от 5 до 15м","шт",3,null,"Блок разветвительно-изолирующий БРИЗ ЗАО НВП \"Болид\""]
[52,"Монтаж извещателя пожарного дымового оптико-электронного аналогово-адресного со встроенным изолятором короткого замыкания ДИП-34А-03 на высоте свыше 2 до 5м","шт",2,null,"Извещатель пожарный дымовой оптико-электронный аналогово-адресный взрывозащищённый ДИП-34А-03-Exi ЗАО НВП \"Болид\""]
[53,"Монтаж барьера искрозащитного С2000-Спектрон-ИБ на высоте от 2 до 5 м","шт",1,null,"Барьер искрозащитный С2000-Спектрон-ИБ ЗАО НВП \"Болид\""]
[54,"Монтаж устройства устройства коммутационного УК-Ех на высоте от 2 до 5 м","шт",2,null,"Устройство коммутационное УК-Ех ЗАО НВП \"Болид\""]
[null,"Оборудования оповещения и управления эвакуацией людей при пожаре:"]
[55,"Монтаж блока речевого оповещения Рупор-300 на стене h=1,5м","шт",8,null,"Блок речевого оповещения Рупор-300 ЗАО НВП \"Болид\""]
[56,"Установка аккумулятора 12В, 9 Ач (АБ1217С) в Рупор-300","шт",16,null,"Аккумулятор 12В, 17 Ач (АБ1217С) срок службы 12 лет АБ1217С ЗАО НВП \"Болид\""]
[57,"Монтаж адресного модуля контроля линий Рупор-300-МК на высоте 2м","шт",12,null,"Адресный модуль контроля линий Рупор-300-МК ЗАО НВП \"Болид\""]
[58,"Монтаж оповещателя пожарного речевого всепогодного ОПР-У150.1 на высоте 2,3","шт",54,null,"Оповещатель пожарный речевой всепогодный ОПР-У150.1 ЗАО НВП \"Болид\""]
[59,"Монтаж оповещателя пожарного речевого всепогодного Прометей-ГВР-Exd-10 на высоте 2,3 м","шт",1,null,"Оповещатель пожарный речевой взрывозащищенный IP65 Прометей-ГВР-Exd-10 СПЕКТРОН ТПП ООО"]
[60,"Монтаж опопвещателя светового табличного адресного С2000-ОСТ исп.01 на \nвысоте от 2 до 5 м","шт",10,null,"Опопвещатель световой табличный адресный С2000-ОСТ исп.01 \"ВЫХОД\" ЗАО НВП \"Болид\""]
[null,"Монтаж проводов, кабелей и аксессуаров пожарной сигнализации:"]
[61,"Монтаж гофрированной ПВХ трубы Ду 16 мм с протяжкой без галогена ПЛЛ ПВ-0 на высоте от 2 до 5 м","м",1185,null," -Труба гофрированная ПВХ диаметром 16 мм с протяжкой без галогена ПЛЛ ПВ-0 - 1185 м (без учета затрат на трудноустранимые потери);\n- Дюбель распорный универсальный полипропиленовый -3555 шт;\n - Саморез - 3555 шт;\n - Скоба металлическая однолапковая  - 3555 шт;\n - Хомут из нержавеющей стали AISI 304 4,6х150 мм (вес 0,002 кг/шт)- 3555 шт"]
[62,"Затяжка кабеля КПСЭнг(А) FRLS 1х2x0,75 в трубу гофрированную","м",1185,null,"Кабель КПСЭнг(А) FRLS 1х2x0,75 - 1185 м (без учета затрат на трудноустранимые потери)"]
[63,"Монтаж гофрированной ПВХ трубы Ду 16 мм с протяжкой без галогена ПЛЛ ПВ-0 на высоте от 5 до 15 м","м",1625,null," - Труба гофрированная ПВХ диаметром 16 мм с протяжкой без галогена ПЛЛ ПВ-0 - 1625 м (без учета затрат на трудноустранимые потери);\n- Дюбель распорный универсальный полипропиленовый - 4875 шт;\n - Саморез - 4875 шт;\n - Скоба металлическая однолапковая  - 4875 шт;\n - Хомут из нержавеющей стали AISI 304 4,6х150 мм (вес 0,002 кг/шт) - 4875 шт"]
[64,"Затяжка кабеля КПСнг(А) FRLS 1х2x1 в трубу гофрированную","м",1625,null,"Кабель КПСнг(А) FRLS 1х2x1 - 1625 м (без учета затрат на трудноустранимые потери)"]
[65,"Монтаж гофрированной ПВХ трубы Ду 16 мм с протяжкой без галогена ПЛЛ ПВ-0 на высоте от 5 до 15 м","м",260,null," -Труба гофрированная ПВХ диаметром 16 мм с протяжкой без галогена ПЛЛ ПВ-0 - 260 м (без учета затрат на трудноустранимые потери); \n- Дюбель распорный универсальный полипропиленовый - 780 шт;\n - Саморез - 780 шт;\n - Скоба металлическая однолапковая  - 780 шт;\n - Хомут из нержавеющей стали AISI 304 4,6х150 мм (вес 0,002 кг/шт) - 780 шт"]
[66,"Затяжка кабеля КПСЭнг(А) FRLS 2х2x1 в трубу гофрированную","м",260,null,"Кабель КПСЭнг(А) FRLS 2х2x1 - 250 м (без учета затрат на трудноустранимые потери)"]
[67,"Монтаж кабельного канала из поливинилхлоридной композиции, неперфорированный, типоразмер 20х10 на высоте 2м","м",30,null," - Кабельканал 20х10 мм - 30 м  (без учета затрат на трудноустранимые потери);\n- Саморез - 90 шт"]
[68,"Укладка кабеля КПСЭнг(А) FRLS 2х2x1 в кабель-канал 20х10","м",30,null,"Кабель КПСЭнг(А) FRLS 2х2x1 - 30 м (без учета затрат на трудноустранимые потери)"]
[69,"Монтаж джек RJ-45 8P-8C FD-6034","шт",2,null,"Разъем Джек RJ-45 8P-8C CAT5e категории 5е под витую пару - 2 шт"]
[70,"Установка коробки огнестойкой для о/п 40-0210-FR1.5-4 Е15-Е120 RAL2004 80х80х40 на высоте 2,3 м","шт",1,null,"Коробка огнестойкая для о/п 40-0210-FR1.5-4 Е15-Е120 RAL2004 80х80х40 Промрукав - 4 шт"]
[71,"Сверление отверстий в кирпичных перегородках толщ. 0,5м под стальную трубу Ду50","шт /м","20/0,5"]
[72,"Монтаж в перегородки трубы стальной водогазопроводной Ду 50 (гильза)","шт /м","20/10",null,"Трубы ВГП обыкновенные 50х3,5 мм - 10 м"]
[73,"Заделка проходов пеной однокомпонентной огнезащитной баллон 750мл ","шт",20,null,"REMONTIX PRO ОГНЕСТОЙКАЯ пистолетная монтажная пена, 750 мл - 2 шт"]
[null,"Внутренний водосток"]
[null,"Демонтажные работы:"]
[74,"Демонтаж трубопровода стального Ф108х4,0","м",460]
[null,"Монтажные работы:"]
[75,"Монтаж системы внутреннего водостока диаметром 110 мм","м",79,null," - Труба полиэтиленовая ПЭ-100 SDR26 DN110×4,2 питьевая ГОСТ 18599-2001 - 79 м;\n - Патрубок компенсационный ТП-110 SDR 26 - 36 шт; \n - Отвод ПНД сварной сегментный d110 45° ПЭ100 SDR26 ГОСТ 18599-2001 - 36 шт;\n - Тройник ПНД сварной сегментный d110 45° ПЭ100 SDR26 ГОСТ 18599-2001 - 4 шт;\n - Заглушка литая ПНД d110 ПЭ100 SDR11 ГОСТ 18599-2001 - 4 шт;\n - Хомут КТР 108 с гайкой М16 - 52 шт;\n - Шпилька М16х1000 (вес 1,33 кг/шт) - 52 шт;\n - Гайка М16 - 52 шт;\n - Шайба М16 - 52 шт"]
[76,"Монтаж системы внутреннего водостока диаметром 160 мм","м",96,null,"  - Труба полиэтиленовая ПЭ-100 SDR26 DN160×6,2 питьевая ГОСТ 18599-2001 - 96 м;\n - Отвод ПНД сварной сегментный d160 45° ПЭ100 SDR26 ГОСТ 18599-2001 - 8 шт;\n - Тройник ПНД сварной сегментный d160х110х160 45° ПЭ100 SDR26 ГОСТ 18599-2001 - 4 шт;\n - Тройник ПНД сварной сегментный d160х160х160 45° ПЭ100 SDR26 ГОСТ 18599-2001 - 8 шт;\n - Заглушка литая ПНД d160 ПЭ100 SDR11 ГОСТ 18599-2001 - 8 шт;\n - Переход ПНД сварной d160х110 ПЭ100 SDR26 - 4 шт\n - Хомут КТР 159 с гайкой М16 - 64 шт;\n - Шпилька М16х1000 (вес 1,33 кг/шт) - 64 шт;\n - Гайка М16 - 64 шт;\n - Шайба М16 - 64 шт"]
[77,"Монтаж системы внутреннего водостока диаметром 200 мм","м",285,null," - Труба полиэтиленовая ПЭ-100 SDR26 DN200×7,7 питьевая ГОСТ 18599-2001 - 285 м;\n - Отвод ПНД сварной сегментный d200 45° ПЭ100 SDR26 - 14 шт;\n - Заглушка литая ПНД d200 ПЭ100 SDR11 ГОСТ 18599-2001 - 18 шт;\n - Тройник ПНД сварной сегментный d200 45° ПЭ100 SDR26 ГОСТ 18599-2001 - 14 шт;\n - Тройник ПНД сварной d200 90° ПЭ100 SDR26 ГОСТ 18599-2001 - 4 шт;\n - Тройник ПНД сварной сегментный d200х110х200 45° ПЭ100 SDR26 ГОСТ 18599-2001 - 24 шт;\n - Переход ПНД сварной d200х160 ПЭ100 SDR26 ГОСТ 18599-2001 - 4 шт;\n - Переход ПНД/КОРСИС DN200 ГОСТ 18599-2001 - 4 шт;\n - Хомут ТКР-219 - 162 шт;\n - Шпилька М16х1000 (вес 1,33 кг/шт) - 162 шт;\n - Гайка М16 - 162 шт;\n - Шайба М16 - 162 шт"]
[null,"Наружный водосток"]
[null,"Земляные работы:"]
[78,"Разработка грунта экскаватором для прокладки трубопроводов канализации","м3",30.7,null,"На глубину 1,3 м. \n - с погрузкой в а/самосвалы = 2,8м3, \n-  в отвал 27,9м3"]
[79,"Разработка грунта вручную для прокладки трубопроводов канализации","м3",30.7,null,"На глубину 1,3 м "]
[80,"Устройство песчанного основания под трубопровод толщиной 100 мм","м3",2.8,null,"Песок природный для строительных: работ средний с крупностью зерен размером свыше 5 мм-до 5% по массе"]
[81,"Обратная засыпка траншеи ранее разработанным грунтом при помощи экскаватора","м3",58.6]
[82,"Вывоз и утилизация излишнеотработанного грунта ","т",4.9000000000000004,null,"Уточнить у Заказчика место складирования и его удаленность от объекта производства работ"]
[null,"Строительные работы:"]
[83,"Укладка канализационных труб диаметром 200 мм","м",36,null," - Труба КОРСИС ПРО DN/OD 200 SN16 - 36 м"]
[84,"Пробивка в стенках колодца отверстий для прохода труб","шт",8,null," - отверстия диаметром 200 мм - 8 шт"]
[85,"Монтаж защитных муфт ","шт/т","8 / 0,01",null," -Муфта Корсис для прохода через ЖБИ DN/OD 200, вес 0,8кг/шт."]
[null,"Пусконаладочные работы. Система пожарной сигнализации. Система оповещения и управления эвакуацией людей при пожаре. "]
[86,"Проведение пусконаладочных работ автоматизированной системы 1 категории с общим количеством каналов 75,37","система",1]
[null,"Пусконаладочные работы ЭМ и ЭС"]
[87,"Замер полного сопротивления цепи \"фаза-ноль\"","измерение",{"$f":"5+7","v":12}]
[88,"Измерение преходных сопротивлений постоянному току шин распределительных устройств напряжением 0,4 кВ","измерение",5]
[89,"Фазировка электрической линии или трансформатора с сетью напряжением до 1 кВ","шт",{"$f":"3+6","v":9}]
[90,"Проверка наличия цепи между заземлителями и заземленными элементами","измерение",{"$f":"5+6","v":11}]
[91,"Испытание аппарата коммутационного напряжением до 1 кВ (силовых цепей)","измерение",{"$f":"1+7","v":8}]
[92,"Испытание сборных и соединительных шин напряжением до 1 кВ","измерение",3]
[93,"Испытание кабеля силового длиной до 500 м напряжением до 1 кВ","измерение",{"$f":"3+7","v":10}]
[]
[]
[]
[]
[null,"Составил:"]
[]
[null,"     Ведущий специалист ОпС АО \"Коломенский Завод\"                                                                        ",null,null,"Самойлов А.О."]
[null,"                                                      (должность)                                                                                                                                                                                    ",null,null,"(подпись)                              (ФИО)"]
[null,"\"_____\" _________ 2025 г. "]
[]
[null,"Проверил:"]
[null,"Начальник отдела по строительству АО \"Коломенский Завод\"  "]
[null,"                                                      (должность)                                                                                                                                               ",null,null,"Губанов П.В."]
[null,"\"_____\" _________ 2025 г. ",null,null,"(подпись)                               (ФИО)"]

{"sheet":"Лист2","index":1,"n_rows":26,"n_cols":17,"rows_kept":26,"cut":false,"hidden":false,"merged":[]}
[]
[]
[]
[]
[]
[null,8.4749999999999996,{"$f":"(0.45*4)","v":1.8},{"$f":"C6/0.2","v":9},{"$f":"(D6*B6)*2","v":152.54999999999998}]
[null,8.8000000000000007,{"$f":"24-(0.45*4)","v":22.2},{"$f":"C7/0.2","v":110.99999999999999},{"$f":"(D7*B7)*2","v":1953.6},null,{"$f":"E7+E6","v":2106.15}]
[null,null,null,null,null,null,{"$f":"E9+E10","v":2052.1187499999996}]
[null,5.5750000000000002,{"$f":"0.325","v":0.32500000000000001},{"$f":"C9/0.2","v":1.625},{"$f":"(D9*B9)*2","v":18.118750000000002}]
[null,24,{"$f":"8.475","v":8.4749999999999996},{"$f":"C10/0.2","v":42.374999999999993},{"$f":"(D10*B10)*2","v":2033.9999999999995},null,0.88800000000000001,{"$f":"((E6+E7+E9+E10)*G10)*0.001","v":3.6925426499999996}]
[]
[]
[]
[null,null,null,null,null,null,null,{"$f":"0.25*0.125*0.025","v":7.8125000000000004E-4},null,null,null,null,null,null,{"$f":"3.14*0.84","v":2.6375999999999999}]
[]
[null,null,null,null,null,null,null,null,{"$f":"H14*61","v":4.7656250000000004E-2},null,null,null,null,null,{"$f":"0.125*4","v":0.5}]
[null,null,null,null,null,null,null,null,null,{"$f":"I16*3","v":0.14296875000000001}]
[null,null,null,null,1,0.2,{"$f":"E18/F18","v":5},null,null,null,{"$f":"J17*2","v":0.28593750000000001},null,null,null,{"$f":"O14*O16","v":1.3188},null,{"$f":"O18*2","v":2.6375999999999999}]
[null,null,null,null,1,0.2,{"$f":"E19/F19","v":5},{"$f":"(G18+G19)*G10","v":8.8800000000000008}]
[]
[]
[]
[]
[]
[null,{"$f":"382060/19103","v":20}]
[null,{"$f":"477575/19103","v":25}]